fUST/lending_fUST_20251022
["ID","MTS","AMOUNT","RATE_DAILY","PERIOD"]
[392000380,1761078632507,-399.51200407,0.00024141,2]
[392000382,1761078632517,-300.0,0.00024141,2]
[392000384,1761078632526,-11558.13881717,0.00024142,2]
[392000386,1761078632536,-276.58616224,0.00024171,2]
[392000387,1761078632545,-205.51869585,0.00024246,2]
[392000389,1761078632555,-859.22760666,0.00024339,2]
[392000391,1761078632564,-636.80651151,0.00024346,2]
[392000392,1761078632573,-571.79321062,0.00024373,2]
[392000393,1761078632582,-1607.68130552,0.00024373,2]
[392000394,1761078632591,-2263.17909613,0.00024415,2]
[392000395,1761078632601,-178.71,0.00024429,2]
[392000396,1761078632610,-347.84,0.00024429,10]
[392000397,1761078632620,-289.87,0.00024429,10]
[392000398,1761078632630,-1200.0,0.00024434,2]
[392000399,1761078632639,-551.09,0.00024436,3]
[392000400,1761078632649,-275.54,0.00024436,3]
[392000401,1761078632659,-826.67,0.00024436,3]
[392000402,1761078632668,-178.71,0.00024436,2]
[392000403,1761078632677,-536.72361335,0.00024438,2]
[392000404,1761078632687,-1448.67860766,0.00024438,2]
[392000405,1761078632696,-500.0,0.00024438,2]
[392000407,1761078632705,-500.0,0.00024438,2]
[392000408,1761078632715,-1448.67860766,0.00024438,2]
[392000409,1761078632724,-420.11289473,0.00024438,2]
[392000411,1761078632733,-553.04535772,0.00024438,2]
[392000413,1761078632743,-500.0,0.00024438,2]
[392000414,1761078632753,-327.75849895,0.00024438,2]
[392000416,1761078632762,-1448.67860766,0.00024438,2]
[392000418,1761078632771,-1448.67860766,0.00024438,2]
[392000420,1761078632780,-182.44356645,0.00024438,2]
[392000422,1761078632790,-1448.67860766,0.00024438,2]
[392000424,1761078632799,-1448.67860766,0.00024438,2]
[392000426,1761078632808,-1448.67860766,0.00024438,2]
[392000428,1761078632818,-1448.67860766,0.00024438,2]
[392000430,1761078632827,-1448.67860766,0.00024438,2]
[392000432,1761078632837,-1448.67860766,0.00024438,2]
[392000434,1761078632847,-1448.67860766,0.00024438,2]
[392000436,1761078632856,-1448.67860766,0.00024438,2]
[392000438,1761078632871,-1448.67860766,0.00024438,2]
[392000440,1761078632880,-1448.67860766,0.00024438,2]
[392000442,1761078632889,-1448.67860766,0.00024438,2]
[392000444,1761078632898,-500.0,0.00024438,2]
[392000446,1761078632910,-1448.67860766,0.00024438,2]
[392000448,1761078632919,-1448.67860766,0.00024438,2]
[392000450,1761078632929,-1448.67860766,0.00024438,2]
[392000452,1761078632939,-998.3028851,0.0002444,2]
[392000454,1761078632948,-500.0,0.00024443,2]
[392000456,1761078632957,-500.0,0.00024443,2]
[392000458,1761078632965,-500.0,0.00024443,2]
[392000460,1761078632975,-350.99406835,0.00024445,2]
[392000462,1761078632984,-180.29996381,0.00024445,2]
[392000464,1761078632993,-370000.0,0.00024446,2]
[392000466,1761078633002,-382.29313651,0.00024473,2]
[392000468,1761078633012,-500.0,0.00024473,2]
[392000470,1761078633021,-500.0,0.00024473,2]
[392000472,1761078633030,-500.0,0.00024473,2]
[392000474,1761078633041,-150.47291482,0.00024473,2]
[392000476,1761078633051,-500.0,0.00024473,2]
[392000478,1761078633060,-500.0,0.00024473,2]
[392000480,1761078633068,-500.0,0.00024498,2]
[392000482,1761078633078,-500.0,0.00024498,2]
[392000484,1761078633089,-785.4356266,0.00024518,2]
[392000486,1761078633104,-155.0,0.00024545,2]
[392000488,1761078633114,-500.0,0.00024553,2]
[392000490,1761078633124,-500.0,0.00024553,2]
[392000492,1761078633133,-500.0,0.00024573,2]
[392000494,1761078633143,-500.0,0.00024573,2]
[392000495,1761078633152,-500.0,0.00024573,2]
[392000497,1761078633162,-500.35577158,0.00024573,2]
[392000499,1761078633171,-500.0,0.00024573,2]
[392000501,1761078633180,-560.09678563,0.00024573,2]
[392000503,1761078633189,-158.30559823,0.00024573,2]
[392000505,1761078633198,-500.0,0.00024573,2]
[392000507,1761078633207,-257.1679022,0.00024573,2]
[392000509,1761078633216,-293.74716204,0.00024573,2]
[392000511,1761078633225,-501.4473781,0.00024573,2]
[392000513,1761078633234,-500.0,0.00024573,2]
[392000515,1761078633244,-500.0,0.00024573,2]
[392000517,1761078633254,-473.25744716,0.00024573,2]
[392000519,1761078633263,-50541.92,0.000246,7]
[392000521,1761078633272,-403.05172659,0.000246,7]
[392000523,1761078633282,-500.0,0.00024607,2]
[392000525,1761078633291,-500.0,0.00024607,2]
[392000527,1761078633300,-500.0,0.00024662,2]
[392000529,1761078633309,-500.0,0.00024662,2]
[392000531,1761078633319,-500.0,0.00024717,2]
[392000533,1761078633328,-500.0,0.00024717,2]
[392000535,1761078633337,-500.0,0.00024717,2]
[392000537,1761078633347,-2654.0,0.00024745,2]
[392000539,1761078633357,-545.20708495,0.0002475,2]
[392000541,1761078633366,-500.0,0.00024772,2]
[392000543,1761078633376,-500.0,0.00024772,2]
[392000545,1761078633385,-500.0,0.00024827,2]
[392000547,1761078633395,-981.37275291,0.00024831,2]
[392000549,1761078633404,-237.00803039,0.00024873,2]
[392000551,1761078633414,-500.0,0.00024873,2]
[392000553,1761078633423,-500.0,0.00024873,2]
[392000555,1761078633433,-500.0,0.00024873,2]
[392000557,1761078633443,-500.0,0.00024873,2]
[392000559,1761078633453,-500.0,0.00024873,2]
[392000561,1761078633462,-158.09830648,0.00024873,2]
[392000563,1761078633472,-500.0,0.00024873,2]
[392000564,1761078633481,-500.0,0.00024873,2]
[392000566,1761078633491,-158.02096538,0.00024873,2]
[392000568,1761078633502,-452.18541522,0.00024873,2]
[392000570,1761078633511,-500.0,0.00024873,2]
[392000572,1761078633522,-577.1107497,0.00024873,2]
[392000574,1761078633532,-500.0,0.00024873,2]
[392000575,1761078633542,-500.0,0.00024873,2]
[392000577,1761078633553,-500.0,0.00024873,2]
[392000579,1761078633564,-522.68705568,0.00024873,2]
[392000581,1761078633575,-500.0,0.00024873,2]
[392000583,1761078633586,-500.0,0.00024873,2]
[392000585,1761078633596,-500.0,0.00024873,2]
[392000586,1761078633606,-500.0,0.00024873,2]
[392000587,1761078633615,-1478.24961344,0.00024882,2]
[392000589,1761078633625,-151.0,0.000249,7]
[392000591,1761078633635,-287.394986,0.000249,7]
[392000593,1761078633645,-287.394986,0.000249,7]
[392000595,1761078633654,-287.394986,0.000249,7]
[392000596,1761078633664,-151.0,0.000249,7]
[392000598,1761078633674,-151.0,0.000249,7]
[392000599,1761078633683,-151.0,0.000249,7]
[392000600,1761078633693,-151.0,0.000249,7]
[392000601,1761078633702,-237.458576,0.000249,7]
[392000602,1761078633711,-151.0,0.000249,7]
[392000604,1761078633721,-151.0,0.000249,7]
[392000606,1761078633730,-151.0,0.000249,2]
[392000607,1761078633739,-151.0,0.000249,7]
[392000609,1761078633751,-151.0,0.000249,7]
[392000611,1761078633760,-151.0,0.000249,7]
[392000613,1761078633770,-151.0,0.000249,7]
[392000614,1761078633780,-151.0,0.000249,7]
[392000616,1761078633790,-151.0,0.000249,7]
[392000618,1761078633799,-292.442796,0.000249,7]
[392000619,1761078633809,-498.808019,0.000249,7]
[392000620,1761078633819,-498.808019,0.000249,7]
[392000621,1761078633828,-498.808019,0.000249,7]
[392000622,1761078633837,-498.808019,0.000249,7]
[392000623,1761078633847,-151.0,0.000249,7]
[392000624,1761078633856,-5500.0,0.000249,7]
[392000625,1761078633870,-151.0,0.000249,7]
[392000626,1761078633879,-5500.0,0.000249,7]
[392000627,1761078633888,-5500.0,0.000249,7]
[392000628,1761078633897,-151.0,0.000249,7]
[392000629,1761078633907,-151.0,0.000249,7]
[392000630,1761078633917,-375.548694,0.000249,7]
[392000631,1761078633926,-375.548694,0.000249,7]
[392000632,1761078633935,-151.0,0.000249,7]
[392000633,1761078633946,-375.548694,0.000249,7]
[392000634,1761078633955,-151.0,0.000249,7]
[392000635,1761078633965,-375.548694,0.000249,7]
[392000636,1761078633974,-151.0,0.000249,7]
[392000637,1761078633983,-151.0,0.000249,7]
[392000638,1761078633992,-151.440173,0.000249,7]
[392000639,1761078634001,-151.0,0.000249,7]
[392000640,1761078634010,-151.0,0.000249,7]
[392000641,1761078634020,-373476.514881,0.000249,2]
[392000642,1761078634029,-151.0,0.000249,7]
[392000643,1761078634039,-151.0,0.000249,7]
[392000644,1761078634048,-271.354589,0.000249,7]
[392000645,1761078634058,-151.0,0.000249,7]
[392000646,1761078634067,-151.0,0.000249,7]
[392000647,1761078634076,-271.354589,0.000249,7]
[392000648,1761078634086,-271.354589,0.000249,7]
[392000649,1761078634095,-151.0,0.000249,7]
[392000650,1761078634104,-151.0,0.000249,2]
[392000651,1761078634113,-271.354589,0.000249,7]
[392000652,1761078634135,-151.0,0.000249,7]
[392000653,1761078634145,-203.658787,0.000249,7]
[392000654,1761078634154,-203.658787,0.000249,7]
[392000655,1761078634164,-203.658787,0.000249,7]
[392000656,1761078634174,-203.658787,0.000249,7]
[392000657,1761078634183,-151.0,0.000249,7]
[392000658,1761078634192,-151.0,0.000249,7]
[392000659,1761078634202,-151.0,0.000249,7]
[392000660,1761078634211,-151.0,0.000249,7]
[392000661,1761078634220,-151.0,0.000249,7]
[392000662,1761078634230,-362.893061,0.000249,7]
[392000663,1761078634239,-362.893061,0.000249,7]
[392000664,1761078634251,-362.893061,0.000249,7]
[392000665,1761078634260,-362.893061,0.000249,7]
[392000666,1761078634270,-151.0,0.000249,7]
[392000667,1761078634280,-151.0,0.000249,7]
[392000668,1761078634289,-253.222268,0.000249,7]
[392000669,1761078634299,-253.222268,0.000249,7]
[392000670,1761078634308,-253.222268,0.000249,7]
[392000671,1761078634317,-253.222268,0.000249,7]
[392000672,1761078634327,-151.0,0.000249,7]
[392000673,1761078634336,-151.0,0.000249,7]
[392000674,1761078634345,-151.0,0.000249,7]
[392000675,1761078634355,-151.0,0.000249,7]
[392000676,1761078634364,-151.0,0.000249,7]
[392000677,1761078634373,-151.0,0.000249,7]
[392000678,1761078634382,-151.0,0.000249,7]
[392000679,1761078634392,-151.0,0.000249,7]
[392000680,1761078634401,-198.479101,0.000249,2]
[392000681,1761078634411,-4911.0,0.00024919,2]
[392000682,1761078634420,-17822.13482289,0.0002499,2]
[392000683,1761078634429,-500.0,0.00024991,2]
[392000684,1761078634439,-417.15472785,0.00025,10]
[392000685,1761078634448,-1000.0,0.00025021,2]
[392000686,1761078634457,-886.32315773,0.00025021,2]
[392000687,1761078634466,-530.2359569,0.00025021,2]
[392000688,1761078634476,-1000.0,0.00025021,2]
[392000689,1761078634485,-1000.0,0.00025021,2]
[392000690,1761078634494,-551.97653501,0.00025021,2]
[392000691,1761078634503,-4911.0,0.00025056,7]
[392000692,1761078634512,-151.0,0.000251,16]
[392000693,1761078634522,-870.44369419,0.00025121,2]
[392000694,1761078634531,-500.0,0.00025121,2]
[392000695,1761078634540,-1000.0,0.00025121,2]
[392000696,1761078634549,-319.0,0.00025201,2]
[392000697,1761078634558,-571.79321058,0.00025209,2]
[392000698,1761078634567,-364.0,0.00025265,2]
[392000699,1761078634577,-500.0,0.00025265,2]
[392000700,1761078634586,-403.05172659,0.000253,7]
[392000701,1761078634597,-4911.0,0.00025419,2]
[392000702,1761078634607,-463.11226929,0.00025421,2]
[392000703,1761078634616,-1000.0,0.00025421,2]
[392000704,1761078634626,-472.36268032,0.00025421,2]
[392000705,1761078634637,-1000.0,0.00025421,2]
[392000706,1761078634646,-1000.0,0.00025421,2]
[392000707,1761078634654,-1000.0,0.00025421,2]
[392000708,1761078634665,-1000.0,0.00025421,2]
[392000709,1761078634675,-1000.0,0.00025421,2]
[392000710,1761078634684,-1000.0,0.00025421,2]
[392000711,1761078634693,-1000.0,0.00025421,2]
[392000712,1761078634702,-505.85006658,0.00025421,2]
[392000713,1761078634711,-4911.0,0.0002548,2]
[392000714,1761078634720,-500.0,0.00025539,2]
[392000715,1761078634729,-160.0,0.00025544,2]
[392000716,1761078634738,-1644.0,0.00025554,2]
[392000717,1761078634748,-1644.0,0.00025564,2]
[392000718,1761078634757,-1500.0,0.00025568,2]
[392000719,1761078634766,-1500.0,0.00025568,2]
[392000720,1761078634776,-1500.0,0.00025568,2]
[392000721,1761078634785,-150.0,0.00025578,2]
[392000722,1761078634794,-1644.0,0.00025666,2]
[392000723,1761078634802,-1505.61126983,0.00025668,2]
[392000724,1761078634811,-1744.66267184,0.0002575,2]
[392000725,1761078634820,-1102.18,0.00025806,3]
[392000726,1761078634829,-551.08,0.00025806,3]
[392000727,1761078634838,-500.0,0.00025813,2]
[392000728,1761078634846,-3903.598383,0.00025849,2]
[392000729,1761078634855,-587.12929947,0.00025849,2]
[392000730,1761078634894,-155.25814743,0.00025849,2]
[392000731,1761078634904,-1324.044245,0.00025849,2]
[392000732,1761078634914,-859.22760662,0.00025862,2]
[392000733,1761078634923,-19.22889663,0.00025878,2]
[392000734,1761078634934,-500.0,0.00025878,2]
[392000769,1761078638298,-1165.0,0.00024438,2]
[392000773,1761078638352,-283.67860766,0.00024438,2]
[392000776,1761078638363,-695.20523296,0.00024438,2]
[392000781,1761078638408,-753.4733747,0.00024438,2]
[392000783,1761078638418,-1448.67860766,0.00024438,2]
[392000785,1761078638427,-1448.67860766,0.00024438,2]
[392000787,1761078638436,-1448.67860766,0.00024438,2]
[392000789,1761078638446,-1448.67860766,0.00024438,2]
[392000791,1761078638455,-1448.67860766,0.00024438,2]
[392000793,1761078638464,-1448.67860766,0.00024438,2]
[392000795,1761078638473,-1448.67860766,0.00024438,2]
[392000797,1761078638482,-538.53104659,0.00024438,2]
[392000799,1761078638494,-910.14756107,0.00024438,2]
[392000801,1761078638504,-1448.67860766,0.00024438,2]
[392000803,1761078638513,-1448.67860766,0.00024438,2]
[392000805,1761078638523,-1448.67860766,0.00024438,2]
[392000807,1761078638532,-1448.67860766,0.00024438,2]
[392000809,1761078638542,-46.49929796,0.00024438,2]
[392000881,1761078645001,417.15472785,0.00024,2]
[392000918,1761078646377,417.15472785,0.00024,3]
[392000928,1761078646776,-560.41120388,0.00024438,2]
[392000940,1761078678666,150.0,0.0002014,2]
[392000941,1761078679056,150.0,0.00021971,2]
[392000942,1761078679449,150.0,0.00023802,2]
[392000943,1761078681072,200.0,0.00035099,120]
[392000944,1761078683239,150.0,0.00013853,30]
[392000945,1761078683643,150.0,0.00015113,30]
[392000946,1761078684063,150.0,0.00016372,30]
[392000947,1761078684535,150.0,0.00017631,30]
[392000948,1761078684931,150.0,0.00018891,30]
[392000949,1761078685920,150.0,0.0002015,30]
[392000950,1761078697809,417.15472785,0.0003,120]
[392000951,1761078753611,150.0,0.0002017,2]
[392000952,1761078754014,150.0,0.00022004,2]
[392000953,1761078754411,150.0,0.00023837,2]
[392000954,1761078764022,150.0,0.00013489,30]
[392000955,1761078764772,150.0,0.00014716,30]
[392000956,1761078765162,150.0,0.00015942,30]
[392000957,1761078765738,150.0,0.00017168,30]
[392000958,1761078765997,150.0,0.00018395,30]
[392000959,1761078794128,2003.4,0.00030137,120]
[392000963,1761078811533,300.0,0.000184,2]
[392000964,1761078834779,150.0,0.00020499,2]
[392000965,1761078835238,150.0,0.00022362,2]
[392000966,1761078838993,150.0,0.0001331,30]
[392000967,1761078839403,150.0,0.0001452,30]
[392000985,1761078875224,300.0,0.000184,2]
[392001029,1761078897667,893.83352,0.00013699,2]
[392001030,1761078897883,893.83352,0.00020187,2]
[392001031,1761078907088,150.0,0.00020293,2]
[392001032,1761078908023,150.0,0.00022138,2]
[392001033,1761078908503,150.0,0.00023983,2]
[392001034,1761078911810,150.0,0.00013483,30]
[392001035,1761078912246,150.0,0.00014709,30]
[392001036,1761078979409,150.0,0.00020276,2]
[392001037,1761078979800,150.0,0.00022119,2]
[392001038,1761078980409,150.0,0.00023963,2]
[392001039,1761078981118,200.0,0.00035068,120]
[392001050,1761079049805,150.0,0.00020339,2]
[392001051,1761079050203,150.0,0.00022188,2]
[392001052,1761079050609,150.0,0.00024037,2]
[392001053,1761079117211,150.0,0.00020387,2]
[392001054,1761079117612,150.0,0.0002224,2]
[392001055,1761079185350,150.0,0.00020344,2]
[392001056,1761079185739,150.0,0.00022194,2]
[392001058,1761079250598,150.0,0.00020292,2]
[392001059,1761079280661,200.0,0.00035076,120]
[392001060,1761079321856,-463.94821218,0.00024164,2]
[392001061,1761079321885,-482.15035975,0.00024234,2]
[392001062,1761079321915,-794.27525511,0.00024235,2]
[392001063,1761079321943,-482.15035974,0.00024254,2]
[392001064,1761079321973,-300.0,0.00024271,2]
[392001065,1761079322002,-300.0,0.00024272,2]
[392001066,1761079322029,-300.0,0.00024272,2]
[392001067,1761079322059,-1200.0,0.00024272,2]
[392001068,1761079322325,-3913.73083907,0.00024273,2]
[392001069,1761079322352,-482.15035974,0.00024273,2]
[392001070,1761079322380,-136.46006538,0.00024273,2]
[392001071,1761079324868,-300.0,0.00024272,2]
[392001072,1761079324899,-935.32747162,0.00024273,2]
[392001073,1761079337305,-2526.73706473,0.00024276,2]
[392001074,1761079337319,-10000.01,0.00024276,2]
[392001075,1761079337332,-10000.01,0.00024276,2]
[392001076,1761079337454,-10000.01,0.00024276,2]
[392001077,1761079337587,-10000.01,0.00024276,2]
[392001078,1761079337837,-2526.78706473,0.00024276,2]
[392001079,1761079337861,-4946.43587054,0.00024276,2]
[392001080,1761079337959,-1200.0,0.00024276,2]
[392001081,1761079337986,-151.0,0.00024323,2]
[392001082,1761079338014,-151.0,0.00024323,2]
[392001083,1761079338040,-151.0,0.00024323,2]
[392001084,1761079338068,-151.0,0.00024323,2]
[392001085,1761079338097,-151.0,0.00024323,2]
[392001086,1761079338128,-151.0,0.00024323,2]
[392001087,1761079338157,-151.0,0.00024323,2]
[392001088,1761079338194,-158.46588529,0.00024323,2]
[392001089,1761079338224,-302.69,0.00024324,10]
[392001090,1761079338252,-252.24,0.00024324,10]
[392001091,1761079338284,-244.18,0.00024324,10]
[392001092,1761079338313,-203.03,0.00024328,3]
[392001093,1761079342761,609.13,0.00024328,3]
[392001094,1761079345179,203.48,0.00024328,10]
[392001095,1761079352007,-459.93,0.00024336,2]
[392001096,1761079352034,-500.0,0.00024337,2]
[392001097,1761079352062,-219.20353117,0.00024337,2]
[392001098,1761079352090,-427.41781832,0.00024337,2]
[392001099,1761079352641,500.0,0.00024333,2]
[392001100,1761079352668,158.46728223,0.00024333,2]
[392001101,1761079352695,500.0,0.00024333,2]
[392001102,1761079352721,500.0,0.00024333,2]
[392001103,1761079352746,500.0,0.00024333,2]
[392001104,1761079352772,500.0,0.00024333,2]
[392001105,1761079352800,751.11455763,0.00024333,2]
[392001106,1761079352827,500.0,0.00024333,2]
[392001107,1761079352858,500.0,0.00024333,2]
[392001108,1761079352888,751.11455763,0.00024333,2]
[392001109,1761079352922,751.11455763,0.00024333,2]
[392001110,1761079352950,465.74911312,0.00024333,2]
[392001111,1761079352978,409.34723278,0.00024333,2]
[392001112,1761079353002,90.65276722,0.00024333,2]
[392001113,1761079353031,751.11455763,0.00024333,2]
[392001114,1761079353058,472.69821648,0.00024333,2]
[392001115,1761079353085,630.25609946,0.00024333,2]
[392001116,1761079353119,751.11455763,0.00024333,2]
[392001117,1761079353145,631.29087415,0.00024333,2]
[392001118,1761079353173,751.11455763,0.00024333,2]
[392001119,1761079353204,500.0,0.00024333,2]
[392001120,1761079353231,751.11455763,0.00024333,2]
[392001121,1761079353262,751.11455763,0.00024333,2]
[392001122,1761079353288,751.11455763,0.00024333,2]
[392001123,1761079353316,751.11455763,0.00024333,2]
[392001124,1761079353348,751.11455763,0.00024333,2]
[392001125,1761079353377,751.11455763,0.00024333,2]
[392001126,1761079353412,751.11455763,0.00024333,2]
[392001127,1761079353446,163.96646639,0.00024333,2]
[392001128,1761079353469,587.14809124,0.00024333,2]
[392001129,1761079353512,751.11455763,0.00024333,2]
[392001130,1761079353550,751.11455763,0.00024333,2]
[392001131,1761079353584,751.11455763,0.00024333,2]
[392001132,1761079353614,751.11455763,0.00024333,2]
[392001133,1761079353642,751.11455763,0.00024333,2]
[392001134,1761079353677,751.11455763,0.00024333,2]
[392001135,1761079353706,751.11455763,0.00024333,2]
[392001136,1761079353733,751.11455763,0.00024333,2]
[392001137,1761079353763,751.11455763,0.00024333,2]
[392001138,1761079353793,751.11455763,0.00024333,2]
[392001139,1761079353825,751.11455763,0.00024333,2]
[392001140,1761079353853,751.11455763,0.00024333,2]
[392001141,1761079353884,399.4872172,0.00024333,2]
[392001142,1761079353906,351.62734043,0.00024333,2]
[392001143,1761079353933,751.11455763,0.00024333,2]
[392001144,1761079353962,751.11455763,0.00024333,2]
[392001145,1761079353997,751.11455763,0.00024333,2]
[392001146,1761079354029,751.11455763,0.00024333,2]
[392001147,1761079354065,751.11455763,0.00024333,2]
[392001148,1761079354104,751.11455763,0.00024333,2]
[392001149,1761079354141,751.11455763,0.00024333,2]
[392001150,1761079354171,751.11455763,0.00024333,2]
[392001151,1761079354199,751.11455763,0.00024333,2]
[392001152,1761079354231,751.11455763,0.00024333,2]
[392001153,1761079354260,751.11455763,0.00024333,2]
[392001154,1761079354299,751.11455763,0.00024333,2]
[392001155,1761079354333,635.00796801,0.00024333,2]
[392001156,1761079354360,116.10658962,0.00024333,2]
[392001157,1761079354389,751.11455763,0.00024333,2]
[392001158,1761079354423,751.11455763,0.00024333,2]
[392001159,1761079354456,751.11455763,0.00024333,2]
[392001160,1761079354493,751.11455763,0.00024333,2]
[392001161,1761079354523,751.11455763,0.00024333,2]
[392001162,1761079354552,751.11455763,0.00024333,2]
[392001163,1761079354580,751.11455763,0.00024333,2]
[392001164,1761079354626,751.11455763,0.00024333,2]
[392001165,1761079354655,751.11455763,0.00024333,2]
[392001166,1761079354688,751.11455763,0.00024333,2]
[392001167,1761079354728,751.11455763,0.00024333,2]
[392001168,1761079354756,751.11455763,0.00024333,2]
[392001169,1761079354784,751.11455763,0.00024333,2]
[392001170,1761079354823,119.41416119,0.00024333,2]
[392001171,1761079354847,631.70039644,0.00024333,2]
[392001172,1761079354886,751.11455763,0.00024333,2]
[392001173,1761079354923,751.11455763,0.00024333,2]
[392001174,1761079354960,751.11455763,0.00024333,2]
[392001175,1761079354989,751.11455763,0.00024333,2]
[392001176,1761079355027,751.11455763,0.00024333,2]
[392001177,1761079355059,751.11455763,0.00024333,2]
[392001178,1761079355093,751.11455763,0.00024333,2]
[392001179,1761079356332,169.57,0.00024328,10]
[392001180,1761079356913,1200.0,0.00024332,2]
[392001181,1761079367870,847.87,0.00024328,10]
[392001182,1761079382252,300.0,0.00024337,2]
[392001183,1761079386813,603.82513068,0.00024333,2]
[392001184,1761079386840,603.82513068,0.00024333,2]
[392001185,1761079386871,385.41743879,0.00024333,2]
[392001186,1761079386894,218.40769189,0.00024333,2]
[392001187,1761079386924,603.82513068,0.00024333,2]
[392001188,1761079386959,603.82513068,0.00024333,2]
[392001189,1761079386986,603.82513068,0.00024333,2]
[392001190,1761079387014,603.82513068,0.00024333,2]
[392001191,1761079387306,603.82513068,0.00024333,2]
[392001192,1761079387335,603.82513068,0.00024333,2]
[392001193,1761079387367,603.82513068,0.00024333,2]
[392001194,1761079387395,603.82513068,0.00024333,2]
[392001195,1761079387427,603.82513068,0.00024333,2]
[392001196,1761079387457,603.82513068,0.00024333,2]
[392001197,1761079387491,603.82513068,0.00024333,2]
[392001198,1761079387522,603.82513068,0.00024333,2]
[392001199,1761079387549,603.82513068,0.00024333,2]
[392001200,1761079387582,603.82513068,0.00024333,2]
[392001201,1761079387616,603.82513068,0.00024333,2]
[392001202,1761079387651,603.82513068,0.00024333,2]
[392001203,1761079387685,120.40021723,0.00024333,2]
[392001204,1761079387709,483.42491345,0.00024333,2]
[392001205,1761079387736,603.82513068,0.00024333,2]
[392001206,1761079387767,603.82513068,0.00024333,2]
[392001207,1761079387794,603.82513068,0.00024333,2]
[392001208,1761079387825,603.82513068,0.00024333,2]
[392001209,1761079387856,603.82513068,0.00024333,2]
[392001210,1761079387886,603.82513068,0.00024333,2]
[392001211,1761079387914,603.82513068,0.00024333,2]
[392001212,1761079387943,603.82513068,0.00024333,2]
[392001213,1761079387970,603.82513068,0.00024333,2]
[392001214,1761079388005,603.82513068,0.00024333,2]
[392001215,1761079388046,603.82513068,0.00024333,2]
[392001216,1761079388079,603.82513068,0.00024333,2]
[392001217,1761079388109,603.82513068,0.00024333,2]
[392001218,1761079388144,603.82513068,0.00024333,2]
[392001219,1761079388174,603.82513068,0.00024333,2]
[392001220,1761079388203,459.20812635,0.00024333,2]
[392001221,1761079388229,144.61700433,0.00024333,2]
[392001222,1761079388262,3130.98467128,0.00024273,2]
[392001223,1761079388296,603.82513068,0.00024333,2]
[392001224,1761079388326,603.82513068,0.00024333,2]
[392001225,1761079388359,603.82513068,0.00024333,2]
[392001226,1761079388404,603.82513068,0.00024333,2]
[392001227,1761079388437,603.82513068,0.00024333,2]
[392001228,1761079388470,603.82513068,0.00024333,2]
[392001229,1761079388506,603.82513068,0.00024333,2]
[392001230,1761079388539,603.82513068,0.00024333,2]
[392001231,1761079388578,603.82513068,0.00024333,2]
[392001232,1761079388614,603.82513068,0.00024333,2]
[392001233,1761079388650,603.82513068,0.00024333,2]
[392001234,1761079388678,82.33188691,0.00024333,2]
[392001235,1761079388703,521.49324377,0.00024333,2]
[392001236,1761079388733,603.82513068,0.00024333,2]
[392001239,1761079398624,550.44348869,0.00024333,2]
[392001240,1761079398655,550.44348869,0.00024333,2]
[392001241,1761079398685,550.44348869,0.00024333,2]
[392001242,1761079398717,550.44348869,0.00024333,2]
[392001243,1761079398745,550.44348869,0.00024333,2]